bitfinex-derivatives/quotes_BTCF0:USTF0_20251214
["timestamp","ask_amount","ask_price","bid_price","bid_amount"]
[1765728463227,0.05485846,89038.0,89037.0,0.0705403]
[1765728463434,0.07960938,89038.0,89037.0,0.0407403]
[1765728463638,0.07960938,89038.0,89037.0,0.0705403]
[1765728463940,0.08360938,89038.0,89037.0,0.0705403]
[1765728464137,0.08360938,89038.0,89037.0,0.05931]
[1765728464340,0.0659213,89029.0,89028.0,0.0705415]
[1765728464636,0.09067222,89029.0,89028.0,0.0705415]
[1765728465444,0.09067222,89029.0,89028.0,0.05931]
[1765728465739,0.09067222,89029.0,89028.0,0.06131]
[1765728466744,0.09167222,89029.0,89028.0,0.06331]
[1765728468237,0.09167222,89029.0,89028.0,0.03351]
[1765728468436,0.09167222,89029.0,89028.0,0.06331]
[1765728479451,0.09067222,89029.0,89028.0,0.05931]
[1765728479642,0.09567222,89029.0,89028.0,0.0715415]
[1765728480254,0.09267222,89029.0,89028.0,0.0715415]
[1765728480443,0.09367222,89029.0,89028.0,0.0715415]
[1765728480751,0.09367222,89029.0,89028.0,0.06031]
[1765728481146,0.09467222,89029.0,89028.0,0.07487]
[1765728481348,0.08344092,89029.0,89028.0,0.4469015]
[1765728481552,0.02875092,89029.0,89028.0,0.4469015]
[1765728482650,0.05649092,89029.0,89028.0,0.4469015]
[1765728482845,0.05749092,89029.0,89028.0,0.4469015]
[1765728483046,0.02775092,89029.0,89028.0,0.4469015]
[1765728483655,0.02675092,89029.0,89028.0,0.4469015]
[1765728485449,0.002,89029.0,89028.0,0.4469015]
[1765728485647,0.04113876,89038.0,89037.0,0.05891]
[1765728485952,0.06819876,89038.0,89037.0,0.05891]
[1765728487052,0.06919876,89038.0,89037.0,0.05891]
[1765728488954,0.06819876,89038.0,89037.0,0.05891]
[1765728489255,0.07019876,89038.0,89037.0,0.05891]
[1765728489648,0.07119876,89038.0,89037.0,0.05891]
[1765728490055,0.07219876,89038.0,89037.0,0.05891]
[1765728490743,0.07019876,89038.0,89037.0,0.05891]
[1765728490944,0.07219876,89038.0,89037.0,0.05891]
[1765728492151,0.0568,89031.0,89030.0,0.4309412]
[1765728493354,0.0588,89031.0,89030.0,0.4309412]
[1765728493654,0.0608,89031.0,89030.0,0.4309412]
[1765728495651,0.0578,89031.0,89030.0,0.4319412]
[1765728496354,0.0578,89031.0,89030.0,0.4309412]
[1765728496554,0.0578,89031.0,89030.0,0.4319412]
[1765728498057,0.0578,89031.0,89030.0,0.4309412]
[1765728498261,0.0588,89031.0,89030.0,0.4329412]
[1765728500253,0.002,89031.0,89030.0,0.4329412]
[1765728500559,0.002,89031.0,89030.0,0.49356961]
[1765728501857,0.002,89031.0,89030.0,0.4329412]
[1765728502963,0.03174,89031.0,89030.0,0.4329412]
[1765728503462,0.0588,89031.0,89030.0,0.4329412]
[1765728504360,0.03174,89031.0,89030.0,0.4329412]
[1765728504662,0.002,89031.0,89030.0,0.4329412]
[1765728509767,0.002,89031.0,89030.0,0.0721412]
[1765728509966,0.002,89031.0,89030.0,0.4329412]
[1765728511053,0.00016846,89038.0,89037.0,0.0675303]
[1765728511255,0.00016846,89038.0,89037.0,0.12815301]
[1765728512567,0.00216846,89038.0,89037.0,0.12815301]
[1765728512768,0.00216846,89038.0,89037.0,0.0675303]
[1765728513870,0.00316846,89038.0,89037.0,0.0695303]
[1765728514476,0.00216846,89038.0,89037.0,0.0675303]
[1765728514673,0.00216846,89038.0,89037.0,0.0725303]
[1765728515064,0.00216846,89038.0,89037.0,0.4333303]
[1765728515266,0.00216846,89038.0,89037.0,0.4303303]
[1765728515267,0.00116846,89038.0,89037.0,0.4303303]
[1765728515472,0.00216846,89038.0,89037.0,0.4333303]
[1765728516174,0.03066846,89038.0,89037.0,0.4333303]
[1765728516673,0.00216846,89038.0,89037.0,0.4333303]
[1765728516976,0.00216846,89038.0,89037.0,0.4323303]
[1765728517674,0.00116846,89038.0,89037.0,0.4323303]
[1765728518566,0.00216846,89038.0,89037.0,0.4333303]
[1765728519270,0.00116846,89038.0,89037.0,0.4313303]
[1765728519469,0.00216846,89038.0,89037.0,0.4333303]
[1765728519868,0.00116846,89038.0,89037.0,0.4303303]
[1765728520070,0.00216846,89038.0,89037.0,0.4333303]
[1765728522079,0.00116846,89038.0,89037.0,0.4313303]
[1765728522275,0.00216846,89038.0,89037.0,0.4333303]
[1765728522977,0.00116846,89038.0,89037.0,0.4303303]
[1765728523178,0.00216846,89038.0,89037.0,0.4323303]
[1765728523769,0.00116846,89038.0,89037.0,0.4303303]
[1765728523977,0.00216846,89038.0,89037.0,0.4333303]
[1765728524268,0.00116846,89038.0,89037.0,0.4313303]
[1765728524469,0.00216846,89038.0,89037.0,0.4333303]
[1765728524880,0.02966846,89038.0,89037.0,0.4313303]
[1765728525079,0.03066846,89038.0,89037.0,0.4333303]
[1765728525576,0.02966846,89038.0,89037.0,0.4313303]
[1765728525783,0.03066846,89038.0,89037.0,0.4333303]
[1765728525986,0.05858846,89038.0,89037.0,0.4333303]
[1765728526686,0.00216846,89038.0,89037.0,0.4333303]
[1765728535688,0.05858846,89038.0,89037.0,0.4333303]
[1765728537990,0.05758846,89038.0,89037.0,0.4313303]
[1765728538189,0.05758846,89038.0,89037.0,0.4333303]
[1765728538389,0.05858846,89038.0,89037.0,0.4333303]
[1765728538991,0.05858846,89038.0,89037.0,0.4323303]
[1765728539687,0.05758846,89038.0,89037.0,0.4303303]
[1765728539891,0.05858846,89038.0,89037.0,0.4323303]
[1765728541290,0.00216846,89038.0,89037.0,0.4323303]
[1765728541491,0.03205846,89038.0,89037.0,0.4323303]
[1765728541788,0.00216846,89038.0,89037.0,0.4323303]
[1765728547688,0.06150846,89038.0,89037.0,0.4323303]
[1765728550397,0.03205846,89038.0,89037.0,0.4323303]
[1765728552403,0.06150846,89038.0,89037.0,0.4323303]
[1765728553000,0.03205846,89038.0,89037.0,1.9323303]
[1765728553200,0.06150846,89038.0,89037.0,1.9323303]
[1765728555604,0.08615212,89038.0,89037.0,1.9211]
[1765728555898,0.08615212,89038.0,89037.0,1.9191]
[1765728556103,0.08515212,89038.0,89037.0,1.9201]
[1765728556607,0.08415212,89038.0,89037.0,1.9191]
[1765728556905,0.08515212,89038.0,89037.0,1.9191]
[1765728557206,0.08515212,89038.0,89037.0,1.9171]
[1765728562210,0.05934,89026.0,89025.0,0.11824282]
[1765728562509,0.05934,89026.0,89025.0,0.05758]
[1765728562809,0.05934,89026.0,89025.0,1.55758]
[1765728563109,0.09525806,89026.0,89025.0,1.55758]
[1765728563304,0.0705717,89026.0,89025.0,1.55758]
[1765728563497,0.0725717,89026.0,89025.0,1.56058]
[1765728574915,0.45802035,89026.0,89025.0,1.56058]
[1765728577712,0.45802035,89026.0,89025.0,0.06058]
[1765728582923,0.45802035,89026.0,89025.0,0.07163]
[1765728583308,0.45802035,89026.0,89025.0,0.06058]
[1765728584307,0.09722035,89026.0,89025.0,0.06058]
[1765728592022,0.09722035,89026.0,89025.0,0.003]
[1765728593020,0.0682822,89022.0,89021.0,0.00016846]
[1765728593215,0.10528085,89022.0,89021.0,0.00016846]
[1765728594215,0.10628085,89022.0,89021.0,0.03153846]
[1765728594620,0.10728085,89022.0,89021.0,0.03153846]
[1765728595131,0.10628085,89022.0,89021.0,0.00316846]
[1765728595431,0.10728085,89022.0,89021.0,0.00316846]
[1765728595631,0.10738782,89022.0,89021.0,0.00316846]
[1765728595831,0.10738782,89022.0,89021.0,0.00216846]
[1765728596730,0.0703634,89013.0,89012.0,1.5]
[1765728596924,0.09511902,89013.0,89012.0,1.5]
[1765728597114,0.09511902,89013.0,89012.0,1.51751]
[1765728598123,0.09611902,89013.0,89012.0,1.51751]
[1765728598930,0.09711902,89013.0,89012.0,1.52051]
[1765728602537,0.09711902,89013.0,89012.0,1.503]
[1765728604938,0.06737902,89013.0,89012.0,1.503]
[1765728605136,0.09711902,89013.0,89012.0,1.503]
[1765728605336,0.03798902,89013.0,89012.0,1.503]
[1765728605536,0.02675562,89013.0,89012.0,1.8638]
[1765728607538,0.002,89013.0,89012.0,1.8638]
[1765728609445,0.03133,89013.0,89012.0,1.8638]
[1765728610329,0.002,89013.0,89012.0,1.8638]
[1765728632152,0.002,89013.0,89012.0,1.92446282]
[1765728635248,0.002,89013.0,89012.0,1.8638]
[1765728635952,0.002,89013.0,89012.0,1.9244444]
[1765728636154,0.002,89013.0,89012.0,1.8638]
[1765728644250,0.002,89013.0,89012.0,1.87496]
[1765728647963,0.05706,89030.0,89029.0,0.0112313]
[1765728648264,0.02473916,89030.0,89029.0,0.0695013]
[1765728649156,0.02473916,89030.0,89029.0,0.4303013]
[1765728649352,0.02573916,89030.0,89029.0,0.4303013]
[1765728650267,0.002,89030.0,89029.0,0.4303013]
[1765728650562,0.001,89030.0,89029.0,0.4303013]
[1765728650764,0.05706,89041.0,89040.0,0.07611]
[1765728651060,0.08177573,89041.0,89040.0,0.07611]
[1765728652165,0.09300553,89041.0,89040.0,0.07611]
[1765728653167,0.09400553,89041.0,89040.0,0.07711]
[1765728653868,0.09500553,89041.0,89040.0,0.07711]
[1765728654566,0.09400553,89041.0,89040.0,0.07711]
[1765728654768,0.09500553,89041.0,89040.0,0.07711]
[1765728656270,0.05584573,89041.0,89040.0,0.07711]
[1765728656860,0.08528573,89041.0,89040.0,0.07711]
[1765728662073,0.08528573,89041.0,89040.0,0.05927]
[1765728663476,0.44608573,89041.0,89040.0,0.001]
[1765728664580,0.44608573,89041.0,89040.0,0.02855]
[1765728664970,0.44608573,89041.0,89040.0,0.001]
[1765728665580,0.44608573,89041.0,89040.0,0.02855]
[1765728667581,0.44608573,89041.0,89040.0,0.001]
[1765728667779,0.44608573,89041.0,89040.0,0.05581]
[1765728668683,0.08528573,89041.0,89040.0,0.05581]
[1765728670972,0.08528573,89041.0,89040.0,0.07219]
[1765728671274,0.08528573,89041.0,89040.0,0.05581]
[1765728676383,0.08528573,89041.0,89040.0,0.0709]
[1765728678082,0.02671573,89041.0,89040.0,0.0709]
[1765728678277,0.002,89041.0,89040.0,0.0709]
[1765728679605,0.002,89041.0,89040.0,0.0729]
[1765728679772,0.002,89041.0,89040.0,0.0739]
[1765728680174,0.00016846,89049.0,89048.0,0.0814189]
[1765728680381,0.00016846,89049.0,89048.0,0.4422189]
[1765728681880,0.00016846,89049.0,89048.0,0.4432189]
[1765728682279,0.00116846,89049.0,89048.0,0.4452189]
[1765728682481,0.00116846,89049.0,89048.0,0.4442189]
[1765728682683,0.00116846,89049.0,89048.0,0.4452189]
[1765728683483,0.00016846,89049.0,89048.0,0.4432189]
[1765728683688,0.00116846,89049.0,89048.0,0.4452189]
[1765728684080,0.0406161,89071.0,89070.0,0.0660362]
[1765728684278,0.0946342,89071.0,89070.0,0.05481]
[1765728685279,0.0946342,89071.0,89070.0,0.05581]
[1765728685280,0.0976342,89071.0,89070.0,0.05581]
[1765728685691,0.1006342,89071.0,89070.0,0.05681]
[1765728688092,0.0760561,89071.0,89070.0,0.05681]
[1765728688494,0.06483,89071.0,89070.0,0.05681]
[1765728689490,0.076056,89071.0,89070.0,0.05681]
[1765728690595,0.06483,89071.0,89070.0,0.05681]
[1765728699406,0.08936096,89071.0,89070.0,0.05681]
[1765728700103,0.06483,89071.0,89070.0,0.05681]
[1765728700303,0.08936346,89071.0,89070.0,0.05681]
[1765728701006,0.06483,89071.0,89070.0,0.05681]
[1765728701403,0.03539,89071.0,89070.0,0.05681]
[1765728701705,0.006,89071.0,89070.0,0.05681]
[1765728701907,0.0352,89071.0,89070.0,0.05681]
[1765728702396,0.06465,89071.0,89070.0,0.05681]
[1765728703909,0.06265,89071.0,89070.0,0.05781]
[1765728704104,0.05965,89071.0,89070.0,0.05681]
[1765728704303,0.08420284,89071.0,89070.0,0.05781]
[1765728704507,0.08420284,89071.0,89070.0,0.05681]
[1765728705008,0.08520284,89071.0,89070.0,0.05581]
[1765728706313,0.02655284,89071.0,89070.0,0.05581]
[1765728706512,0.08520284,89071.0,89070.0,0.05581]
[1765728712006,0.08520284,89071.0,89070.0,0.001]
[1765728712209,0.05865,89070.0,89069.0,0.3519718]
[1765728712402,0.05865,89063.0,89062.0,0.00016846]
[1765728712603,0.08320284,89063.0,89062.0,0.05783846]
[1765728712802,0.05375284,89063.0,89062.0,0.05783846]
[1765728713002,0.08320284,89063.0,89062.0,0.05783846]
[1765728713807,0.08420284,89063.0,89062.0,0.05983846]
[1765728714011,0.08420284,89063.0,89062.0,0.00216846]
[1765728714206,0.08420284,89063.0,89062.0,0.00516846]
[1765728714207,0.08520284,89063.0,89062.0,0.00516846]
[1765728714410,0.05865,89049.0,89048.0,0.11812074]
[1765728714599,0.09440451,89049.0,89048.0,0.05767]
[1765728714803,0.05865,89041.0,89040.0,0.09017074]
[1765728715103,0.08317571,89041.0,89040.0,0.05767]
[1765728715308,0.05865,89041.0,89040.0,0.05767]
[1765728716618,0.05965,89041.0,89040.0,0.05767]
[1765728717020,0.06065,89041.0,89040.0,0.05867]
[1765728717318,0.05965,89041.0,89040.0,0.05867]
[1765728717623,0.06065,89041.0,89040.0,0.05867]
[1765728718319,0.06065,89041.0,89040.0,0.05967]
[1765728720216,0.06165,89041.0,89040.0,0.05867]
[1765728720920,0.06165,89041.0,89040.0,0.07526]
[1765728721116,0.0322,89041.0,89040.0,0.07526]
[1765728721418,0.06108,89041.0,89040.0,0.07526]
[1765728724810,0.06108,89041.0,89040.0,0.05867]
[1765728726115,0.06108,89041.0,89040.0,0.001]
[1765728726822,0.06108,89041.0,89040.0,0.02857]
[1765728727217,0.05908,89041.0,89040.0,0.02757]
[1765728727528,0.06108,89041.0,89040.0,0.02857]
[1765728727826,0.05908,89041.0,89040.0,0.02757]
[1765728728025,0.06108,89041.0,89040.0,0.02857]
[1765728729123,0.06008,89041.0,89040.0,0.02857]
[1765728729429,0.06108,89041.0,89040.0,0.02857]
[1765728730823,0.05808,89041.0,89040.0,0.02757]
[1765728731122,0.06108,89041.0,89040.0,0.02857]
[1765728731523,0.06108,89041.0,89040.0,0.05851]
[1765728732326,0.06008,89041.0,89040.0,0.05851]
[1765728732525,0.06108,89041.0,89040.0,0.05851]
[1765728733132,0.06108,89041.0,89040.0,0.0751]
[1765728735926,0.06108,89041.0,89040.0,0.05851]
[1765728738329,0.06108,89041.0,89040.0,0.02857]
[1765728738533,0.06108,89041.0,89040.0,0.001]
[1765728738826,0.06108,89041.0,89040.0,0.02857]
[1765728739424,0.08575872,89041.0,89040.0,0.02857]
[1765728739831,0.08375872,89041.0,89040.0,0.05751]
[1765728740030,0.08575872,89041.0,89040.0,0.05851]
[1765728741129,0.08375872,89041.0,89040.0,0.05751]
[1765728741433,0.0696007,89034.0,89033.0,0.0687408]
[1765728742532,0.0706007,89034.0,89033.0,0.0697408]
[1765728743424,0.0706007,89034.0,89033.0,0.0707408]
[1765728743734,0.0716007,89034.0,89033.0,0.0707408]
[1765728745434,0.09633639,89034.0,89033.0,0.0707408]
[1765728745831,0.09633639,89034.0,89033.0,0.05951]
[1765728749635,0.06745639,89034.0,89033.0,0.05951]
[1765728749839,0.09541639,89034.0,89033.0,0.05951]
[1765728751338,0.09541639,89034.0,89033.0,0.11996074]
[1765728751940,0.09541639,89034.0,89033.0,0.05951]
[1765728752344,0.09541639,89034.0,89033.0,0.11996074]
[1765728755246,0.09541639,89034.0,89033.0,0.05951]
[1765728756942,0.08418569,89034.0,89033.0,0.05951]
[1765728757145,0.02673569,89034.0,89033.0,0.05951]
[1765728757737,0.05480569,89034.0,89033.0,0.05951]
[1765728758432,0.08380569,89034.0,89033.0,0.05951]
[1765728761851,0.08380569,89034.0,89033.0,0.12012725]
[1765728762049,0.08380569,89034.0,89033.0,0.05951]
[1765728763049,0.08380569,89034.0,89033.0,0.12011514]
[1765728763249,0.08380569,89034.0,89033.0,0.05951]
[1765728763648,0.08380569,89034.0,89033.0,0.12011263]
[1765728772951,0.02673569,89034.0,89033.0,0.48091263]
[1765728773356,0.002,89034.0,89033.0,0.42031]
[1765728773558,0.05907,89034.0,89033.0,0.42031]
[1765728773955,0.08377315,89034.0,89033.0,0.42031]
[1765728774459,0.05907,89034.0,89033.0,0.42031]
[1765728775156,0.08377149,89034.0,89033.0,0.42031]
[1765728780261,0.08377018,89034.0,89033.0,0.42031]
[1765728781571,0.08377018,89034.0,89033.0,0.48088597]
[1765728781871,0.08377018,89034.0,89033.0,0.42031]
[1765728782264,0.08377018,89034.0,89033.0,0.48088985]
[1765728782862,0.08377018,89034.0,89033.0,0.42031]
[1765728785667,0.08377018,89034.0,89033.0,0.48089177]
[1765728786067,0.08377018,89034.0,89033.0,0.42031]
[1765728786275,0.02670018,89034.0,89033.0,0.42031]
[1765728786575,0.002,89034.0,89033.0,0.42031]
[1765728786775,0.02967,89034.0,89033.0,0.42031]
[1765728787476,0.05436896,89034.0,89033.0,0.42031]
[1765728789174,0.02967,89034.0,89033.0,0.42031]
[1765728789573,0.05436833,89034.0,89033.0,0.42031]
[1765728789771,0.02967,89034.0,89033.0,0.42031]
[1765728790877,0.05436835,89034.0,89033.0,0.42031]
[1765728791077,0.08384835,89034.0,89033.0,0.42031]
[1765728791277,0.05915,89034.0,89033.0,0.42031]
[1765728791479,0.002,89034.0,89033.0,0.42031]
[1765728792070,0.02967,89034.0,89033.0,0.42031]
[1765728794378,0.002,89034.0,89033.0,0.42031]
[1765728797081,0.02967,89034.0,89033.0,0.42031]
[1765728797379,0.05915,89034.0,89033.0,0.42031]
[1765728797680,0.08384865,89034.0,89033.0,0.42031]
[1765728797979,0.05915,89034.0,89033.0,0.42031]
[1765728798374,0.08384867,89034.0,89033.0,0.42031]
[1765728799580,0.05915,89034.0,89033.0,0.42031]
[1765728799781,0.08378019,89034.0,89033.0,0.42031]
[1765728801386,0.02663019,89034.0,89033.0,0.42031]
[1765728801577,0.002,89034.0,89033.0,0.42031]
[1765728802075,0.002,89034.0,89033.0,1.92031]
[1765728805780,0.02663168,89034.0,89033.0,1.92031]
[1765728806781,0.02783846,89049.0,89048.0,0.0838989]
[1765728806977,0.04785628,89049.0,89048.0,0.0838989]
[1765728808084,0.02031628,89049.0,89048.0,0.0838989]
[1765728808287,0.06681626,89057.0,89056.0,0.0668379]
[1765728809384,0.07081626,89057.0,89056.0,0.0678379]
[1765728810391,0.07481626,89057.0,89056.0,0.0688379]
[1765728811587,0.07281626,89057.0,89056.0,0.0688379]
[1765728811794,0.06881626,89057.0,89056.0,0.0678379]
[1765728812092,0.07081626,89057.0,89056.0,0.0688379]
[1765728812496,0.06981626,89057.0,89056.0,0.0678379]
[1765728812895,0.06781626,89057.0,89056.0,0.0668379]
[1765728813096,0.06981626,89057.0,89056.0,0.0678379]
[1765728813298,0.06881626,89057.0,89056.0,0.0678379]
[1765728813694,0.07081626,89057.0,89056.0,0.0688379]
[1765728814296,0.03204846,89057.0,89056.0,0.0852279]
[1765728814992,0.05846846,89057.0,89056.0,0.4440279]
[1765728815191,0.06046846,89057.0,89056.0,0.4450279]
[1765728815598,0.05746846,89057.0,89056.0,0.4440279]
[1765728815798,0.06046846,89057.0,89056.0,0.4450279]
[1765728816297,0.05946846,89057.0,89056.0,0.4450279]
[1765728816600,0.05846846,89057.0,89056.0,0.4460279]
[1765728817283,0.00116846,89057.0,89056.0,0.4460279]
[1765728818297,0.00016846,89057.0,89056.0,0.4450279]
[1765728818498,0.02892846,89057.0,89056.0,0.4450279]
[1765728818699,0.05340109,89057.0,89056.0,0.4460279]
[1765728819700,0.08282109,89057.0,89056.0,0.4460279]
[1765728821393,0.05834846,89057.0,89056.0,0.4460279]
[1765728821593,0.0828111,89057.0,89056.0,0.4460279]
[1765728822102,0.0828111,89057.0,89056.0,0.4296379]
[1765728822299,0.0828111,89057.0,89056.0,0.0688379]
[1765728824807,0.05834846,89057.0,89056.0,0.0852279]
[1765728826106,0.08280631,89057.0,89056.0,0.0852279]
[1765728827697,0.08280631,89057.0,89056.0,0.4460279]
[1765728828504,0.05834846,89057.0,89056.0,0.4460279]
[1765728828710,0.08280563,89057.0,89056.0,0.4460279]
[1765728855133,0.05834846,89057.0,89056.0,0.4460279]
[1765728855335,0.08275974,89057.0,89056.0,0.4460279]
[1765728858631,0.08275974,89057.0,89056.0,0.0852279]
[1765728858837,0.08275974,89057.0,89056.0,0.4460279]
[1765728862339,0.05499974,89057.0,89056.0,0.4460279]
[1765728862545,0.02557974,89057.0,89056.0,0.4460279]
[1765728863449,0.02557974,89057.0,89056.0,0.50656586]
[1765728865143,0.02557974,89057.0,89056.0,0.4460279]
[1765728872961,0.05406974,89057.0,89056.0,0.4460279]
[1765728874667,0.05406974,89057.0,89056.0,1.9460279]
[1765728875069,0.02557974,89057.0,89056.0,1.9460279]
[1765728877670,0.05406974,89057.0,89056.0,1.9460279]
[1765728878574,0.02557974,89057.0,89056.0,1.9460279]
[1765728880061,0.00116846,89057.0,89056.0,2.00656586]
[1765728880263,0.00116846,89057.0,89056.0,1.9460279]
[1765728885476,0.0671357,89075.0,89074.0,0.0658657]
[1765728885672,0.08027645,89075.0,89074.0,0.0658657]
[1765728886577,0.08327645,89075.0,89074.0,0.0668657]
[1765728887176,0.08327645,89075.0,89074.0,0.0678657]
[1765728887177,0.08727645,89075.0,89074.0,0.0678657]
[1765728888270,0.03136645,89075.0,89074.0,0.0678657]
[1765728888670,0.03136645,89075.0,89074.0,0.0791324]
[1765728888870,0.05985645,89075.0,89074.0,0.0791324]
[1765728889480,0.03136645,89075.0,89074.0,0.0791324]
[1765728889682,0.05985645,89075.0,89074.0,0.0678657]
[1765728889980,0.08727645,89075.0,89074.0,0.0678657]
[1765728890776,0.08727645,89075.0,89074.0,0.0792568]
[1765728890970,0.08727645,89075.0,89074.0,0.0678657]
[1765728892683,0.03136645,89075.0,89074.0,0.07886903]
[1765728892884,0.05985645,89075.0,89074.0,0.0678657]
[1765728893084,0.08727645,89075.0,89074.0,0.0678657]
[1765728896281,0.05928645,89075.0,89074.0,0.0678657]
[1765728896787,0.03136645,89075.0,89074.0,0.0678657]
[1765728896985,0.05928645,89075.0,89074.0,0.0678657]
[1765728899680,0.05928645,89075.0,89074.0,0.4286657]
[1765728899982,0.08887645,89075.0,89074.0,0.4286657]
[1765728900182,0.03136645,89075.0,89074.0,0.4286657]
[1765728900387,0.08887645,89075.0,89074.0,0.4286657]
[1765728911081,0.08587645,89075.0,89074.0,0.4276657]
[1765728911281,0.08287645,89075.0,89074.0,0.05464]
[1765728911483,0.08387645,89075.0,89074.0,0.001]
[1765728911890,0.0825666,89067.0,89066.0,0.00016846]
[1765728912204,0.10693305,89067.0,89066.0,0.00016846]
[1765728914280,0.11093305,89067.0,89066.0,0.00116846]
[1765728914482,0.11393305,89067.0,89066.0,0.00216846]
[1765728915196,0.11093305,89067.0,89066.0,0.00116846]
[1765728915396,0.11193305,89067.0,89066.0,0.00216846]
[1765728915892,0.10893305,89067.0,89066.0,0.00116846]
[1765728916101,0.11193305,89067.0,89066.0,0.00216846]
[1765728916397,0.11193305,89067.0,89066.0,0.06097846]
[1765728923300,0.11193305,89067.0,89066.0,0.03106846]
[1765728923602,0.11193305,89067.0,89066.0,0.06097846]
[1765728925508,0.11193305,89067.0,89066.0,0.00216846]
[1765728927003,0.11193305,89067.0,89066.0,0.002]
[1765728927215,0.05594,89057.0,89056.0,1.5]
[1765728927510,0.08030645,89057.0,89056.0,1.5]
[1765728929098,0.08030645,89057.0,89048.0,0.00016846]
[1765728929099,0.07285,89049.0,89048.0,0.00016846]
[1765728929312,0.09721645,89049.0,89048.0,0.00016846]
[1765728930310,0.09721645,89049.0,89048.0,0.00216846]
[1765728930311,0.09821645,89049.0,89048.0,0.00216846]
[1765728930509,0.09921645,89049.0,89048.0,0.00316846]
[1765728930903,0.10121645,89049.0,89048.0,0.00216846]
[1765728931308,0.10221645,89049.0,89048.0,0.00216846]
[1765728933516,0.10787904,89049.0,89048.0,0.00216846]
[1765728936209,0.10787904,89049.0,89048.0,0.03198846]
[1765728936512,0.10787904,89049.0,89048.0,0.00216846]
[1765728937516,0.10787904,89049.0,89048.0,0.06120846]
[1765728937905,0.10787904,89049.0,89048.0,0.03198846]
[1765728938102,0.10787904,89049.0,89048.0,0.06120846]
[1765728938303,0.08530645,89049.0,89048.0,0.07854846]
[1765728939923,0.02936645,89049.0,89048.0,0.07854846]
[1765728940808,0.005,89049.0,89048.0,0.07854846]
[1765728944512,0.06232,89049.0,89048.0,0.07854846]
[1765728945023,0.03442,89049.0,89048.0,0.07854846]
[1765728945213,0.06232,89049.0,89048.0,0.07854846]
[1765728945412,0.03442,89049.0,89048.0,0.07854846]
[1765728955317,0.005,89049.0,89048.0,0.07854846]
[1765728955522,0.03442,89049.0,89048.0,0.07854846]
[1765728955723,0.005,89049.0,89048.0,0.07854846]
[1765728957229,0.06335,89049.0,89048.0,0.07854846]
[1765728957527,0.03442,89049.0,89048.0,0.07854846]
[1765728957716,0.005,89049.0,89048.0,0.07854846]
[1765728959225,0.005,89049.0,89048.0,0.43934846]
[1765728960228,0.00016846,89057.0,89056.0,0.05539]
[1765728960527,0.00016846,89057.0,89056.0,0.41619]
[1765728961225,0.02874846,89057.0,89056.0,0.4274179]
[1765728961414,0.03274846,89057.0,89056.0,0.4284179]
[1765728962028,0.03374846,89057.0,89056.0,0.4294179]
[1765728962828,0.03274846,89057.0,89056.0,0.4284179]
[1765728963030,0.03374846,89057.0,89056.0,0.4294179]
[1765728963220,0.02974846,89057.0,89056.0,0.4294179]
[1765728963420,0.00116846,89057.0,89056.0,0.4294179]
[1765728963620,0.02974846,89057.0,89056.0,0.4294179]
[1765728963825,0.05867846,89057.0,89056.0,0.4294179]
[1765728964521,0.67656,89076.0,89075.0,0.0666155]
[1765728964522,0.41831,89076.0,89075.0,0.0666155]
[1765728964733,0.44315567,89076.0,89075.0,0.05539]
[1765728964924,0.09115567,89076.0,89075.0,0.05539]
[1765728965117,0.05751,89068.0,89067.0,0.4419766]
[1765728965324,0.08235567,89068.0,89067.0,0.4419766]
[1765728965922,0.05342567,89068.0,89067.0,0.4419766]
[1765728966228,0.02484567,89068.0,89067.0,0.4419766]
[1765728966424,0.00616846,89076.0,89075.0,0.0666155]
[1765728966624,0.00616846,89076.0,89075.0,0.4274155]
[1765728966826,0.06067846,89076.0,89075.0,0.4274155]
[1765728967129,0.05767846,89076.0,89075.0,0.4274155]
[1765728968924,0.05967846,89076.0,89075.0,0.4284155]
[1765728969426,0.06167846,89076.0,89075.0,0.4284155]
[1765728969729,0.00416846,89076.0,89075.0,0.4284155]
[1765728970127,0.03274846,89076.0,89075.0,0.4284155]
[1765728970330,0.06167846,89076.0,89075.0,0.4284155]
[1765728980835,0.03274846,89076.0,89075.0,0.4284155]
[1765728981134,0.06167846,89076.0,89075.0,0.4284155]
[1765728983040,0.03274846,89076.0,89075.0,0.4284155]
[1765728983236,0.06167846,89076.0,89075.0,0.4284155]
[1765728984538,0.00416846,89076.0,89075.0,0.4284155]
[1765728987040,0.00316846,89076.0,89075.0,0.4304155]
[1765728987547,0.00116846,89076.0,89075.0,0.4304155]
[1765728987745,0.00216846,89076.0,89075.0,0.4324155]
[1765728988045,0.00116846,89076.0,89075.0,0.4294155]
[1765728988346,0.00116846,89076.0,89075.0,0.4304155]
[1765728988547,0.00216846,89076.0,89075.0,0.4324155]
[1765728989444,0.00116846,89076.0,89075.0,0.4304155]
[1765728989641,0.00116846,89076.0,89075.0,0.4314155]
[1765728990042,0.00116846,89076.0,89075.0,0.4304155]
[1765728990545,0.00016846,89076.0,89075.0,0.4284155]
[1765728990744,0.05576846,89076.0,89075.0,0.4294155]
[1765728990940,0.05576846,89076.0,89075.0,0.4284155]
[1765728991145,0.05476846,89076.0,89075.0,0.4284155]
[1765728991349,0.05576846,89076.0,89075.0,0.4294155]
[1765728992644,0.05676846,89076.0,89075.0,0.4284155]
[1765728992852,0.05676846,89076.0,89075.0,0.41719]
[1765728993240,0.08152878,89076.0,89075.0,0.41719]
[1765728993439,0.08252878,89076.0,89075.0,0.41719]
[1765728994248,0.08452878,89076.0,89075.0,0.41719]
[1765728994448,0.08152878,89076.0,89075.0,0.41619]
[1765728994756,0.08452878,89076.0,89075.0,0.41719]
[1765728995336,0.09565878,89076.0,89075.0,0.05639]
[1765728996154,0.09465878,89076.0,89075.0,0.05639]
[1765728996746,0.09565878,89076.0,89075.0,0.05639]
[1765728997352,0.09465878,89076.0,89075.0,0.05639]
[1765728997742,0.09465878,89076.0,89075.0,0.02814]
[1765728998454,0.09265878,89076.0,89075.0,0.02814]
[1765728998645,0.09465878,89076.0,89075.0,0.05785]
[1765728998952,0.09565878,89076.0,89075.0,0.05785]
[1765729000146,0.09265878,89076.0,89075.0,0.02814]
[1765729000462,0.09565878,89076.0,89075.0,0.02914]
[1765729000956,0.09565878,89076.0,89075.0,0.002]
[1765729002357,0.09565878,89076.0,89075.0,0.03006]
[1765729002750,0.09565878,89076.0,89075.0,0.05877]
[1765729004762,0.08452878,89076.0,89075.0,0.05877]
[1765729005244,0.09500878,89076.0,89075.0,0.05877]
[1765729008159,0.08452878,89076.0,89075.0,0.05877]